[Event "21st Open Gran Hotel Bali-B 2024"]
[Site "Benidorm"]
[Date "2024.11.30"]
[Round "3.1"]
[White "Robledo Sanchez, Saul"]
[Black "Garcia Navarro, Jose Jesus"]
[Result "1/2-1/2"]
[ECO "B38"]
[WhiteElo "1996"]
[BlackElo "1929"]
[Annotator "NA RC"]
[PlyCount "57"]
[EventDate "2024.11.26"]
[EventType "swiss"]
[EventCountry "ESP"]
[SourceTitle "playchess.com"]
[Source "ChessBase"]
[SourceQuality "1"]
[TimeControl "5400+30"]

1. e4 {[%emt 0:00:03]} c5 {[%emt 0:03:42]} 2. Nf3 {[%emt 0:00:10]} g6 {[%emt 0:00:26]} 3. d4 {[%emt 0:01:06]} cxd4 {[%emt 0:00:02]} 4. Nxd4 {[%emt 0:00:09]} Bg7 {[%emt 0:00:05]} 5. c4 {[%emt 0:02:17]} Nc6 {[%emt 0:00:18]} 6. Be3 {[%emt 0:00:32]} d6 {[%emt 0:00:02]} 7. Nc3 {[%emt 0:01:18]} f5 {[%emt 0:00:36]} 8. exf5 {[%emt 0:02:45]} gxf5 {[%emt 0:00:05]} 9. Qh5+ {[%emt 0:02:55]} Kf8 {[%emt 0:00:17]} 10. Nxf5 {[%emt 0:13:33]} Bxc3+ {[%emt 0:00:02]} 11. bxc3 {[%emt 0:00:35]} Qa5 {[%emt 0:00:00]} 12. Bh6+ {[%emt 0:22:51]} Nxh6 {[%emt 0:00:01]} 13. Qxh6+ {[%emt 0:00:10]} Ke8 {[%emt 0:00:02]} 14. Ng7+ {[%emt 0:01:13]} Kd8 {[%emt 0:00:02]} 15. Kd2 {[%emt 0:03:46]} Qb6 {[%emt 0:12:02]} 16. Rc1 {[%emt 0:05:39]} Qxf2+ {[%emt 0:06:21]} 17. Be2 {[%emt 0:02:55]} Bg4 {[%emt 0:28:09]} 18. Rce1 {[%emt 0:04:23]} Ne5 {[%emt 0:12:00]} 19. Rhf1 {[%emt 0:09:41]} Nxc4+ {[%emt 0:10:04]} 20. Kc1 {[%emt 0:01:41]} Qe3+ {[%emt 0:00:02]} 21. Qxe3 {[%emt 0:00:35]} Nxe3 {[%emt 0:00:02]} 22. Rf7 {[%emt 0:04:04]} Bxe2 {[%emt 0:16:22]} 23. Rxe2 {[%emt 0:00:28]} Nd5 {[%emt 0:00:01]} 24. Kb2 {[%emt 0:08:17]} Rc8 {[%emt 0:00:57]} 25. Re4 {[%emt 0:04:37]} b5 {[%emt 0:11:20]} 26. a4 {[%emt 0:07:47]} a6 {[%emt 0:00:30]} 27. axb5 {[%emt 0:00:30]} axb5 {[%emt 0:00:30]} 28. h3 {[%emt 0:00:30]} Kd7 {[%emt 0:00:30]} 29. Nf5 {[%emt 0:00:30]} 1/2-1/2

[Event "21st Open Gran Hotel Bali-B 2024"]
[Site "Benidorm"]
[Date "2024.11.30"]
[Round "3.2"]
[White "Johansen, Lars"]
[Black "Bukharkov, Stepan"]
[Result "1/2-1/2"]
[ECO "B12"]
[WhiteElo "1920"]
[BlackElo "1991"]
[Annotator "NA RC"]
[PlyCount "103"]
[EventDate "2024.11.26"]
[EventType "swiss"]
[EventCountry "ESP"]
[SourceTitle "playchess.com"]
[Source "ChessBase"]
[SourceQuality "1"]
[TimeControl "5400+30"]

1. e4 {[%emt 0:05:01]} c6 {[%emt 0:00:06]} 2. d4 {[%emt 0:00:13]} d5 {[%emt 0:00:06]} 3. e5 {[%emt 0:00:20]} c5 {[%emt 0:00:05]} 4. dxc5 {[%emt 0:00:20]} e6 {[%emt 0:00:06]} 5. a3 {[%emt 0:01:05]} Bxc5 {[%emt 0:00:08]} 6. b4 {[%emt 0:00:55]} Bb6 {[%emt 0:01:26]} 7. Qg4 {[%emt 0:02:17]} Ne7 {[%emt 0:00:22]} 8. Bd3 {[%emt 0:04:59]} Ng6 {[%emt 0:02:01]} 9. h4 {[%emt 0:06:05]} Qc7 {[%emt 0:25:49]} 10. Bb2 {[%emt 0:11:16]} Nc6 {[%emt 0:02:43]} 11. Nf3 {[%emt 0:04:34]} Bd7 {[%emt 0:04:46]} 12. Qg5 {[%emt 0:03:43]} d4 {[%emt 0:04:54]} 13. Bxg6 {[%emt 0:20:11]} hxg6 {[%emt 0:01:50]} 14. h5 {[%emt 0:01:54]} Qd8 {[%emt 0:05:45]} 15. Qg4 {[%emt 0:08:51]} Qe7 {[%emt 0:01:12]} 16. Nbd2 {[%emt 0:05:12]} gxh5 {[%emt 0:05:21]} 17. Rxh5 {[%emt 0:01:06]} Rxh5 {[%emt 0:00:51]} 18. Qxh5 {[%emt 0:00:04]} O-O-O {[%emt 0:00:39]} 19. O-O-O {[%emt 0:04:00]} Be8 {[%emt 0:01:48]} 20. Qg4 {[%emt 0:18:24]} d3 {[%emt 0:08:12]} 21. Ne4 {[%emt 0:00:30]} dxc2 {[%emt 0:01:25]} 22. Rxd8+ {[%emt 0:00:00]} Kxd8 {[%emt 0:00:17]} 23. Qxg7 {[%emt 0:00:00]} Qd7 {[%emt 0:02:20]} 24. Nd6 {[%emt 0:00:00]} Bxf2 {[%emt 0:04:55]} 25. Ng5 {[%emt 0:00:00]} Be3+ {[%emt 0:06:50]} 26. Kxc2 {[%emt 0:00:00]} Bxg5 {[%emt 0:01:52]} 27. Qxg5+ {[%emt 0:00:00]} Ne7 {[%emt 0:01:49]} 28. Qd2 {[%emt 0:01:44]} Nd5 {[%emt 0:04:44]} 29. Kb1 {[%emt 0:00:40]} f6 {[%emt 0:05:41]} 30. Nxe8 {[%emt 0:00:30]} Kxe8 {[%emt 0:00:12]} 31. exf6 {[%emt 0:00:22]} Nxf6 {[%emt 0:00:48]} 32. Qxd7+ {[%emt 0:00:43]} Nxd7 {[%emt 0:00:02]} 33. Bd4 {[%emt 0:00:19]} a6 {[%emt 0:00:15]} 34. Kc2 {[%emt 0:00:10]} e5 {[%emt 0:00:06]} 35. Bc3 {[%emt 0:00:33]} Ke7 {[%emt 0:00:42]} 36. Kd3 {[%emt 0:00:02]} Ke6 {[%emt 0:00:17]} 37. g4 {[%emt 0:00:32]} Kd5 {[%emt 0:05:06]} 38. g5 {[%emt 0:00:44]} Nf8 {[%emt 0:00:25]} 39. Bb2 {[%emt 0:01:03]} Ne6 {[%emt 0:00:11]} 40. Bc1 {[%emt 0:00:33]} e4+ {[%emt 0:01:10]} 41. Ke2 {[%emt 0:01:26]} Ke5 {[%emt 0:01:53]} 42. g6 {[%emt 0:00:35]} Kf6 {[%emt 0:01:18]} 43. g7 {[%emt 0:00:14]} Nxg7 {[%emt 0:00:54]} 44. Bb2+ {[%emt 0:00:08]} Kf7 {[%emt 0:00:06]} 45. Bxg7 {[%emt 0:00:06]} Kxg7 {[%emt 0:00:12]} 46. Ke3 {[%emt 0:00:01]} Kf6 {[%emt 0:00:08]} 47. Kxe4 {[%emt 0:00:29]} Ke6 {[%emt 0:00:06]} 48. Kd4 {[%emt 0:01:05]} Kd6 {[%emt 0:00:12]} 49. a4 {[%emt 0:00:27]} a5 {[%emt 0:00:53]} 50. bxa5 {[%emt 0:00:12]} Kc7 {[%emt 0:00:23]} 51. Kc5 {[%emt 0:00:14]} Kb8 {[%emt 0:00:06]} 52. Kb6 {[%emt 0:00:36]} 1/2-1/2

[Event "21st Open Gran Hotel Bali-B 2024"]
[Site "Benidorm"]
[Date "2024.11.30"]
[Round "3.3"]
[White "Banegas Gomez, Ricardo"]
[Black "Allabatre, Steeve"]
[Result "1-0"]
[ECO "C84"]
[WhiteElo "1984"]
[BlackElo "1926"]
[Annotator "NA RC"]
[PlyCount "79"]
[EventDate "2024.11.26"]
[EventType "swiss"]
[EventCountry "ESP"]
[SourceTitle "playchess.com"]
[Source "ChessBase"]
[SourceQuality "1"]
[TimeControl "5400+30"]

1. e4 {[%emt 0:00:05]} e5 {[%emt 0:00:10]} 2. Nf3 {[%emt 0:00:08]} Nc6 {[%emt 0:00:07]} 3. Bb5 {[%emt 0:00:12]} a6 {[%emt 0:01:32]} 4. Ba4 {[%emt 0:00:12]} Nf6 {[%emt 0:00:25]} 5. d4 {[%emt 0:00:13]} exd4 {[%emt 0:13:45]} 6. O-O {[%emt 0:00:46]} Be7 {[%emt 0:02:31]} 7. e5 {[%emt 0:04:00]} Nd5 {[%emt 0:03:01]} 8. c3 {[%emt 0:02:03]} Nb6 {[%emt 0:03:31]} 9. cxd4 {[%emt 0:13:02]} Nxa4 {[%emt 0:04:27]} 10. Qxa4 {[%emt 0:00:12]} d5 {[%emt 0:00:19]} 11. exd6 {[%emt 0:08:54]} Qxd6 {[%emt 0:01:04]} 12. Nc3 {[%emt 0:04:22]} O-O {[%emt 0:02:59]} 13. d5 {[%emt 0:00:50]} Nb4 {[%emt 0:01:35]} 14. Re1 {[%emt 0:14:03]} Bf5 {[%emt 0:09:34]} 15. Nd4 {[%emt 0:02:20]} Bg6 {[%emt 0:00:52]} 16. g3 {[%emt 0:08:24]} Nd3 {[%emt 0:06:22]} 17. Rf1 {[%emt 0:05:11]} Bf6 {[%emt 0:02:10]} 18. Be3 {[%emt 0:03:12]} b5 {[%emt 0:01:06]} 19. Qa5 {[%emt 0:12:22]} Nxb2 {[%emt 0:08:50]} 20. Nce2 {[%emt 0:05:16]} Nc4 {[%emt 0:01:02]} 21. Qc3 {[%emt 0:00:45]} Qxd5 {[%emt 0:07:02]} 22. Nf4 {[%emt 0:02:34]} Qe5 {[%emt 0:00:48]} 23. Qb3 {[%emt 0:06:06]} Be4 {[%emt 0:02:39]} 24. Rad1 {[%emt 0:01:19]} c5 {[%emt 0:12:08]} 25. Nde2 {[%emt 0:02:56]} Rad8 {[%emt 0:03:55]} 26. Bc1 {[%emt 0:01:11]} Bb7 {[%emt 0:01:50]} 27. Rde1 {[%emt 0:00:16]} Rfe8 {[%emt 0:01:33]} 28. f3 {[%emt 0:02:48]} Qd6 {[%emt 0:04:58]} 29. Rd1 {[%emt 0:00:22]} Qc6 {[%emt 0:00:20]} 30. Rxd8 {[%emt 0:00:24]} Rxd8 {[%emt 0:00:06]} 31. Nh5 {[%emt 0:00:49]} Be7 {[%emt 0:01:03]} 32. g4 {[%emt 0:00:29]} g6 {[%emt 0:00:25]} 33. Nhg3 {[%emt 0:00:10]} Ne5 {[%emt 0:01:05]} 34. Ne4 {[%emt 0:00:20]} c4 {[%emt 0:00:24]} 35. Qc3 {[%emt 0:00:31]} Nxf3+ {[%emt 0:00:41]} 36. Qxf3 {[%emt 0:00:30]} Qe6 {[%emt 0:02:09]} 37. N2g3 {[%emt 0:00:43]} Bc5+ {[%emt 0:00:51]} 38. Kg2 {[%emt 0:00:26]} Rd3 {[%emt 0:00:34]} 39. Nf6+ {[%emt 0:00:44]} Qxf6 {[%emt 0:00:31]} 40. Qxb7 {[%emt 0:00:04]} 1-0

[Event "21st Open Gran Hotel Bali-B 2024"]
[Site "Benidorm"]
[Date "2024.11.30"]
[Round "3.4"]
[White "Hamilton, Douglas G"]
[Black "Westerweele, Henrik"]
[Result "1/2-1/2"]
[ECO "A03"]
[WhiteElo "2032"]
[BlackElo "1983"]
[Annotator "NA RC"]
[PlyCount "57"]
[EventDate "2024.11.26"]
[EventType "swiss"]
[EventCountry "ESP"]
[SourceTitle "playchess.com"]
[Source "ChessBase"]
[SourceQuality "1"]
[TimeControl "5400+30"]

1. f4 {[%emt 0:00:04]} e6 {[%emt 0:00:15]} 2. Nf3 {[%emt 0:00:22]} d5 {[%emt 0:01:00]} 3. e3 {[%emt 0:00:21]} c5 {[%emt 0:02:12]} 4. b3 {[%emt 0:02:11]} Nc6 {[%emt 0:01:23]} 5. Bb5 {[%emt 0:00:27]} Bd7 {[%emt 0:01:22]} 6. Bb2 {[%emt 0:00:23]} Nf6 {[%emt 0:01:16]} 7. O-O {[%emt 0:00:26]} Be7 {[%emt 0:01:37]} 8. c4 {[%emt 0:01:51]} a6 {[%emt 0:05:14]} 9. Bxc6 {[%emt 0:00:05]} Bxc6 {[%emt 0:00:04]} 10. Ne5 {[%emt 0:03:24]} Qb6 {[%emt 0:07:39]} 11. d3 {[%emt 0:04:29]} dxc4 {[%emt 0:05:50]} 12. Nxc4 {[%emt 0:02:09]} Qa7 {[%emt 0:00:09]} 13. Qe2 {[%emt 0:03:06]} Rd8 {[%emt 0:04:00]} 14. Nc3 {[%emt 0:01:13]} b5 {[%emt 0:03:24]} 15. Ne5 {[%emt 0:02:09]} Qb7 {[%emt 0:05:43]} 16. Nxc6 {[%emt 0:05:21]} Qxc6 {[%emt 0:00:08]} 17. e4 {[%emt 0:02:11]} c4 {[%emt 0:05:47]} 18. dxc4 {[%emt 0:04:54]} b4 {[%emt 0:07:10]} 19. Na4 {[%emt 0:05:53]} Nxe4 {[%emt 0:08:45]} 20. Rfd1 {[%emt 0:02:04]} Rxd1+ {[%emt 0:04:27]} 21. Rxd1 {[%emt 0:00:54]} Bf6 {[%emt 0:03:12]} 22. Bxf6 {[%emt 0:01:45]} Nxf6 {[%emt 0:04:02]} 23. Qd3 {[%emt 0:02:02]} O-O {[%emt 0:00:45]} 24. Qd6 {[%emt 0:01:07]} Qe4 {[%emt 0:01:08]} 25. Qd4 {[%emt 0:01:08]} Qe2 {[%emt 0:02:24]} 26. Qd2 {[%emt 0:01:19]} Qh5 {[%emt 0:05:06]} 27. Re1 {[%emt 0:05:08]} Qa5 {[%emt 0:03:57]} 28. Rd1 {[%emt 0:08:27]} Qc7 {[%emt 0:01:02]} 29. Qd6 {[%emt 0:00:39]} 1/2-1/2

[Event "21st Open Gran Hotel Bali-B 2024"]
[Site "Benidorm"]
[Date "2024.11.30"]
[Round "3.5"]
[White "Kvendseth, Thyra"]
[Black "Carruana Fuentes, Rafael"]
[Result "1-0"]
[ECO "A29"]
[WhiteElo "1975"]
[BlackElo "1913"]
[Annotator "NA RC"]
[PlyCount "85"]
[EventDate "2024.11.26"]
[EventType "swiss"]
[EventCountry "ESP"]
[SourceTitle "playchess.com"]
[Source "ChessBase"]
[SourceQuality "1"]
[TimeControl "5400+30"]

1. c4 {[%emt 1:31:00]} e5 {[%emt 0:00:16]} 2. g3 {[%emt 0:00:00]} Nf6 {[%emt 0:00:27]} 3. Bg2 {[%emt 0:00:00]} d5 {[%emt 0:00:17]} 4. cxd5 {[%emt 0:00:00]} Nxd5 {[%emt 0:00:05]} 5. Nc3 {[%emt 0:00:00]} Nb6 {[%emt 0:00:16]} 6. Nf3 {[%emt 0:00:00]} Nc6 {[%emt 0:00:05]} 7. d3 {[%emt 0:00:00]} Be7 {[%emt 0:00:12]} 8. O-O {[%emt 0:00:00]} O-O {[%emt 0:00:08]} 9. a3 {[%emt 0:00:00]} Be6 {[%emt 0:00:29]} 10. b4 {[%emt 0:00:00]} a5 {[%emt 0:00:40]} 11. b5 {[%emt 0:00:00]} Nd4 {[%emt 0:00:14]} 12. Nd2 {[%emt 0:00:00]} Nd5 {[%emt 0:05:47]} 13. Bb2 {[%emt 0:00:00]} Nxc3 {[%emt 0:08:38]} 14. Bxc3 {[%emt 0:00:00]} Bd5 {[%emt 0:03:23]} 15. a4 {[%emt 0:00:00]} Bxg2 {[%emt 0:02:49]} 16. Kxg2 {[%emt 0:00:00]} f6 {[%emt 0:04:54]} 17. e3 {[%emt 0:00:00]} Qd5+ {[%emt 0:08:59]} 18. Kg1 {[%emt 0:00:00]} Ne6 {[%emt 0:01:06]} 19. Qb3 {[%emt 0:00:00]} Rfd8 {[%emt 0:05:04]} 20. Rfd1 {[%emt 0:00:00]} Nc5 {[%emt 0:04:39]} 21. Qxd5+ {[%emt 0:00:00]} Rxd5 {[%emt 0:00:03]} 22. Nc4 {[%emt 0:00:00]} b6 {[%emt 0:02:18]} 23. d4 {[%emt 0:00:00]} Rad8 {[%emt 0:00:38]} 24. Re1 {[%emt 0:00:00]} Ne4 {[%emt 0:06:17]} 25. Bb2 {[%emt 0:00:00]} Bb4 {[%emt 0:01:07]} 26. Rec1 {[%emt 0:00:00]} exd4 {[%emt 0:01:15]} 27. exd4 {[%emt 0:00:00]} Ng5 {[%emt 0:07:58]} 28. Ne3 {[%emt 0:00:00]} R5d7 {[%emt 0:00:04]} 29. Kg2 {[%emt 0:00:00]} Ne4 {[%emt 0:05:35]} 30. Rc6 {[%emt 0:00:00]} Nd2 {[%emt 0:02:46]} 31. Rac1 {[%emt 0:00:00]} Nb3 {[%emt 0:00:54]} 32. R1c4 {[%emt 0:00:00]} Nxd4 {[%emt 0:01:19]} 33. Rxc7 {[%emt 0:00:00]} Nb3 {[%emt 0:05:35]} 34. Rxd7 {[%emt 0:00:00]} Rxd7 {[%emt 0:00:06]} 35. Rc6 {[%emt 0:00:23]} Nc5 {[%emt 0:03:51]} 36. Nc4 {[%emt 0:02:28]} Nxa4 {[%emt 0:00:39]} 37. Nxb6 {[%emt 0:00:09]} Nxb6 {[%emt 0:01:06]} 38. Rxb6 {[%emt 0:00:03]} Bc5 {[%emt 0:07:54]} 39. Rc6 {[%emt 0:03:26]} Rd2 {[%emt 0:06:59]} 40. Bc3 {[%emt 0:01:29]} Rxf2+ {[%emt 0:00:10]} 41. Kh3 {[%emt 0:00:06]} Bb4 {[%emt 0:00:59]} 42. Bxb4 {[%emt 0:00:30]} axb4 {[%emt 0:00:09]} 43. b6 {[%emt 0:00:10]} 1-0

[Event "21st Open Gran Hotel Bali-B 2024"]
[Site "Benidorm"]
[Date "2024.11.30"]
[Round "3.6"]
[White "Valdenebro Orihuel, Miguel"]
[Black "Lloret Climent, Miguel"]
[Result "1/2-1/2"]
[ECO "A46"]
[WhiteElo "1914"]
[BlackElo "1975"]
[Annotator "NA RC"]
[PlyCount "54"]
[EventDate "2024.11.26"]
[EventType "swiss"]
[EventCountry "ESP"]
[SourceTitle "playchess.com"]
[Source "ChessBase"]
[SourceQuality "1"]
[TimeControl "5400+30"]

1. e4 {[%emt 0:05:17]} c5 {[%emt 0:00:14]} 2. Nf3 {[%emt 0:00:15]} e6 {[%emt 0:00:10]} 3. d4 {[%emt 0:00:32]} cxd4 {[%emt 0:00:13]} 4. Nxd4 {[%emt 0:00:44]} a6 {[%emt 0:00:09]} 5. g3 {[%emt 0:01:21]} Qc7 {[%emt 0:02:18]} 6. Bg2 {[%emt 0:00:49]} Nf6 {[%emt 0:01:42]} 7. O-O {[%emt 0:00:56]} d6 {[%emt 0:01:50]} 8. b3 {[%emt 0:03:54]} Be7 {[%emt 0:01:49]} 9. Bb2 {[%emt 0:00:18]} Bd7 {[%emt 0:01:22]} 10. c4 {[%emt 0:02:09]} Nc6 {[%emt 0:01:42]} 11. a4 {[%emt 0:05:07]} O-O {[%emt 0:01:29]} 12. Re1 {[%emt 0:07:04]} Rad8 {[%emt 0:02:45]} 13. Nxc6 {[%emt 0:02:12]} Bxc6 {[%emt 0:01:32]} 14. Qc2 {[%emt 0:03:03]} Nd7 {[%emt 0:02:28]} 15. b4 {[%emt 0:02:35]} b6 {[%emt 0:03:11]} 16. Nd2 {[%emt 0:04:03]} Bf6 {[%emt 0:01:31]} 17. Bxf6 {[%emt 0:03:53]} Nxf6 {[%emt 0:00:41]} 18. Nb3 {[%emt 0:06:42]} Bb7 {[%emt 0:06:10]} 19. Qe2 {[%emt 0:09:18]} Nd7 {[%emt 0:02:27]} 20. Rac1 {[%emt 0:01:17]} Rc8 {[%emt 0:01:36]} 21. f4 {[%emt 0:01:41]} Rfe8 {[%emt 0:07:35]} 22. Qd2 {[%emt 0:02:41]} Red8 {[%emt 0:04:52]} 23. Qe2 {[%emt 0:02:10]} h6 {[%emt 0:11:55]} 24. Red1 {[%emt 0:06:57]} Nf6 {[%emt 0:03:30]} 25. Re1 {[%emt 0:04:42]} Nd7 {[%emt 0:05:59]} 26. Red1 {[%emt 0:00:21]} Nf6 {[%emt 0:01:05]} 27. a5 {[%emt 0:23:59]} Qc6 1/2-1/2

[Event "21st Open Gran Hotel Bali-B 2024"]
[Site "Benidorm"]
[Date "2024.11.30"]
[Round "3.7"]
[White "Ochoa Aldaz, Mikel"]
[Black "Ionita, Emilian-Paul"]
[Result "1/2-1/2"]
[ECO "B20"]
[WhiteElo "1902"]
[BlackElo "1968"]
[Annotator "NA RC"]
[PlyCount "50"]
[EventDate "2024.11.26"]
[EventType "swiss"]
[EventCountry "ESP"]
[SourceTitle "playchess.com"]
[Source "ChessBase"]
[SourceQuality "1"]
[TimeControl "5400+30"]

1. e4 {[%emt 0:00:04]} c5 {[%emt 0:00:13]} 2. c4 {[%emt 0:00:48]} g6 {[%emt 0:01:05]} 3. Nf3 {[%emt 0:00:32]} Bg7 {[%emt 0:00:11]} 4. Nc3 {[%emt 0:01:56]} Nc6 {[%emt 0:00:54]} 5. Be2 {[%emt 0:02:23]} e6 {[%emt 0:00:57]} 6. O-O {[%emt 0:02:22]} Nge7 {[%emt 0:01:28]} 7. d3 {[%emt 0:04:20]} d5 {[%emt 0:03:01]} 8. Bg5 {[%emt 0:04:25]} d4 {[%emt 0:06:03]} 9. Nb1 {[%emt 0:05:13]} h6 {[%emt 0:03:05]} 10. Bf4 {[%emt 0:05:54]} g5 {[%emt 0:01:39]} 11. Bg3 {[%emt 0:02:51]} Ng6 {[%emt 0:00:55]} 12. Nfd2 {[%emt 0:01:41]} e5 {[%emt 0:04:07]} 13. Bh5 {[%emt 0:06:54]} Qf6 {[%emt 0:10:55]} 14. a3 {[%emt 0:05:42]} O-O {[%emt 0:04:01]} 15. Bg4 {[%emt 0:11:47]} a5 {[%emt 0:05:06]} 16. Bxc8 {[%emt 0:02:14]} Rfxc8 {[%emt 0:01:35]} 17. Qg4 {[%emt 0:00:55]} b6 {[%emt 0:03:00]} 18. Nf3 {[%emt 0:02:41]} Re8 {[%emt 0:02:27]} 19. Nbd2 {[%emt 0:03:54]} Nf4 {[%emt 0:02:09]} 20. Bxf4 {[%emt 0:00:32]} Qxf4 {[%emt 0:03:20]} 21. h3 {[%emt 0:04:07]} Qxg4 {[%emt 0:05:29]} 22. hxg4 {[%emt 0:00:06]} Bf8 {[%emt 0:02:24]} 23. Rfd1 {[%emt 0:02:41]} Bd6 {[%emt 0:00:31]} 24. Nf1 {[%emt 0:02:30]} Re6 {[%emt 0:03:18]} 25. Ng3 {[%emt 0:00:33]} Bf8 {[%emt 0:02:27]} 1/2-1/2

[Event "21st Open Gran Hotel Bali-B 2024"]
[Site "Benidorm"]
[Date "2024.11.30"]
[Round "3.8"]
[White "Perez Garcia, Juan Angel"]
[Black "Conde Chamizo, Pablo"]
[Result "0-1"]
[ECO "D02"]
[WhiteElo "1898"]
[BlackElo "1965"]
[Annotator "NA RC"]
[PlyCount "126"]
[EventDate "2024.11.26"]
[EventType "swiss"]
[EventCountry "ESP"]
[SourceTitle "playchess.com"]
[Source "ChessBase"]
[SourceQuality "1"]
[TimeControl "5400+30"]

1. d4 {[%emt 0:01:47]} Nf6 {[%emt 0:00:02]} 2. Bf4 {[%emt 0:00:18]} e6 {[%emt 0:00:11]} 3. Nf3 {[%emt 0:01:05]} c5 {[%emt 0:00:19]} 4. e3 {[%emt 0:03:48]} d5 {[%emt 0:00:06]} 5. c3 {[%emt 0:00:38]} Bd6 {[%emt 0:00:11]} 6. Bg3 {[%emt 0:00:34]} Nc6 {[%emt 0:00:35]} 7. Nbd2 {[%emt 0:01:30]} O-O {[%emt 0:00:34]} 8. Bd3 {[%emt 0:00:55]} b6 {[%emt 0:00:15]} 9. Ne5 {[%emt 0:00:36]} Qc7 {[%emt 0:01:02]} 10. f4 {[%emt 0:00:35]} Bb7 {[%emt 0:01:44]} 11. Bh4 {[%emt 0:01:57]} Ne8 {[%emt 0:08:16]} 12. Qh5 {[%emt 0:03:45]} g6 {[%emt 0:00:54]} 13. Qg4 {[%emt 0:03:32]} Ng7 {[%emt 0:02:47]} 14. Qf3 {[%emt 0:05:21]} f6 {[%emt 0:06:25]} 15. Ng4 {[%emt 0:05:58]} Be7 {[%emt 0:01:43]} 16. Nh6+ {[%emt 0:03:53]} Kh8 {[%emt 0:00:42]} 17. Qh3 {[%emt 0:01:49]} e5 {[%emt 0:06:04]} 18. O-O {[%emt 0:10:41]} exd4 {[%emt 0:08:09]} 19. cxd4 {[%emt 0:01:47]} cxd4 {[%emt 0:00:49]} 20. e4 {[%emt 0:01:46]} dxe4 {[%emt 0:07:01]} 21. Nxe4 {[%emt 0:00:48]} Rad8 {[%emt 0:08:55]} 22. f5 {[%emt 0:04:10]} Bc8 {[%emt 0:03:40]} 23. Bg3 {[%emt 0:03:07]} Ne5 {[%emt 0:01:23]} 24. Rac1 {[%emt 0:01:19]} Qb8 {[%emt 0:02:42]} 25. Rxc8 {[%emt 0:01:05]} Qxc8 {[%emt 0:08:29]} 26. Bxe5 {[%emt 0:00:49]} fxe5 {[%emt 0:02:16]} 27. f6 {[%emt 0:00:23]} Qxh3 {[%emt 0:00:08]} 28. gxh3 {[%emt 0:01:05]} Bxf6 {[%emt 0:09:14]} 29. Rxf6 {[%emt 0:00:59]} Nh5 {[%emt 0:00:10]} 30. Rc6 {[%emt 0:04:45]} Nf4 {[%emt 0:00:33]} 31. Bc4 {[%emt 0:00:56]} d3 {[%emt 0:03:15]} 32. Nf7+ {[%emt 0:07:10]} Rxf7 {[%emt 0:00:09]} 33. Bxf7 {[%emt 0:00:04]} d2 {[%emt 0:00:05]} 34. Bb3 {[%emt 0:01:34]} Ne2+ {[%emt 0:04:54]} 35. Kf2 {[%emt 0:01:59]} Nd4 {[%emt 0:00:04]} 36. Rd6 {[%emt 0:01:05]} Rxd6 {[%emt 0:00:23]} 37. Nxd6 {[%emt 0:00:14]} Nxb3 {[%emt 0:00:05]} 38. Ke2 {[%emt 0:00:50]} Nd4+ {[%emt 0:01:13]} 39. Kxd2 {[%emt 0:00:32]} Kg7 {[%emt 0:00:03]} 40. Nc8 {[%emt 0:00:24]} Nc6 {[%emt 0:00:19]} 41. Ke3 {[%emt 0:01:32]} Kf6 {[%emt 0:00:27]} 42. Nd6 {[%emt 0:00:08]} Ke6 {[%emt 0:01:06]} 43. Ne4 {[%emt 0:00:24]} h6 {[%emt 0:00:28]} 44. a3 {[%emt 0:01:37]} Nd4 {[%emt 0:01:34]} 45. Nc3 {[%emt 0:01:09]} Nf5+ {[%emt 0:00:46]} 46. Kd3 {[%emt 0:00:30]} Nd6 {[%emt 0:00:26]} 47. b3 {[%emt 0:00:23]} Kf5 {[%emt 0:01:07]} 48. Ke3 {[%emt 0:00:47]} e4 {[%emt 0:01:12]} 49. Nd5 {[%emt 0:00:19]} Ke5 {[%emt 0:00:28]} 50. Nc3 {[%emt 0:01:12]} Nf5+ {[%emt 0:01:37]} 51. Kd2 {[%emt 0:01:15]} Kf4 {[%emt 0:00:24]} 52. Nd5+ {[%emt 0:06:27]} Kf3 {[%emt 0:00:09]} 53. Ke1 {[%emt 0:00:14]} e3 {[%emt 0:00:37]} 54. Nc3 {[%emt 0:01:58]} Nd4 {[%emt 0:00:27]} 55. b4 {[%emt 0:01:07]} Nc2+ {[%emt 0:00:49]} 56. Kd1 {[%emt 0:00:07]} Nxa3 {[%emt 0:00:06]} 57. Ne2 {[%emt 0:00:11]} a5 {[%emt 0:01:10]} 58. bxa5 {[%emt 0:00:16]} bxa5 {[%emt 0:00:03]} 59. Ke1 {[%emt 0:00:27]} Nc2+ {[%emt 0:00:28]} 60. Kd1 {[%emt 0:00:07]} Nb4 {[%emt 0:00:12]} 61. Ke1 {[%emt 0:00:43]} Nd3+ {[%emt 0:00:06]} 62. Kd1 {[%emt 0:00:04]} a4 {[%emt 0:00:14]} 63. Nd4+ {[%emt 0:00:19]} Kf2 {[%emt 0:00:08]} 0-1

[Event "21st Open Gran Hotel Bali-B 2024"]
[Site "Benidorm"]
[Date "2024.11.30"]
[Round "3.9"]
[White "Seleznev, Egor"]
[Black "Fernandez Alonso, Miguel Angel"]
[Result "1/2-1/2"]
[ECO "A48"]
[WhiteElo "1894"]
[BlackElo "1960"]
[Annotator "NA RC"]
[PlyCount "78"]
[EventDate "2024.11.26"]
[EventType "swiss"]
[EventCountry "ESP"]
[SourceTitle "playchess.com"]
[Source "ChessBase"]
[SourceQuality "1"]
[TimeControl "5400+30"]

1. d4 {[%emt 0:00:26]} Nf6 {[%emt 0:00:15]} 2. Bf4 {[%emt 0:01:29]} g6 {[%emt 0:00:16]} 3. e3 {[%emt 0:00:47]} Bg7 {[%emt 0:00:16]} 4. Nf3 {[%emt 0:00:56]} d6 {[%emt 0:00:19]} 5. Be2 {[%emt 0:02:10]} O-O {[%emt 0:00:12]} 6. O-O {[%emt 0:00:38]} Nh5 {[%emt 0:00:51]} 7. Bg5 {[%emt 0:00:17]} h6 {[%emt 0:00:13]} 8. Bh4 {[%emt 0:00:29]} g5 {[%emt 0:00:17]} 9. Nfd2 {[%emt 1:27:48]} gxh4 {[%emt 0:00:14]} 10. Bxh5 {[%emt 0:00:00]} h3 {[%emt 0:00:18]} 11. f4 {[%emt 0:00:00]} c5 {[%emt 0:00:21]} 12. c3 {[%emt 0:00:00]} hxg2 {[%emt 0:03:46]} 13. Kxg2 {[%emt 0:00:00]} Nd7 {[%emt 0:00:16]} 14. Ne4 {[%emt 0:00:00]} f5 {[%emt 0:00:50]} 15. Ng3 {[%emt 0:00:00]} Nf6 {[%emt 0:00:12]} 16. Bf3 {[%emt 0:00:00]} Rb8 {[%emt 0:00:17]} 17. Qb3+ {[%emt 0:00:00]} Kh8 {[%emt 0:00:26]} 18. Rd1 {[%emt 0:00:00]} Qc7 {[%emt 0:00:27]} 19. c4 {[%emt 0:00:00]} Bd7 {[%emt 0:01:06]} 20. d5 {[%emt 0:00:00]} b5 {[%emt 0:00:29]} 21. Nc3 {[%emt 0:00:00]} bxc4 {[%emt 0:03:28]} 22. Qc2 {[%emt 0:00:00]} Qa5 {[%emt 0:04:33]} 23. Rd2 {[%emt 0:00:00]} Ng4 {[%emt 0:04:00]} 24. Re2 {[%emt 0:00:00]} Rxb2 {[%emt 0:06:58]} 25. Qxb2 {[%emt 0:00:00]} Bxc3 {[%emt 0:00:09]} 26. Qc1 {[%emt 0:00:00]} Bxa1 {[%emt 0:03:19]} 27. Qxa1+ {[%emt 0:00:00]} c3 {[%emt 0:00:23]} 28. Bxg4 {[%emt 0:00:00]} fxg4 {[%emt 0:00:15]} 29. Rc2 {[%emt 0:00:00]} Kg8 {[%emt 0:06:47]} 30. Rxc3 {[%emt 0:00:00]} Rb8 {[%emt 0:02:38]} 31. Nh5 {[%emt 0:00:00]} Kf7 {[%emt 0:06:31]} 32. Rb3 {[%emt 0:00:00]} Qd2+ {[%emt 0:00:45]} 33. Kg1 {[%emt 0:00:00]} Rg8 {[%emt 0:00:16]} 34. Qb1 {[%emt 0:00:00]} Rg6 {[%emt 0:01:39]} 35. e4 {[%emt 0:00:00]} Ba4 {[%emt 0:01:01]} 36. Rb7 {[%emt 0:01:16]} a6 {[%emt 0:07:26]} 37. e5 {[%emt 0:01:45]} Qe3+ {[%emt 0:10:29]} 38. Kh1 {[%emt 0:01:08]} Qf3+ {[%emt 0:05:18]} 39. Kg1 {[%emt 0:00:16]} Qe3+ {[%emt 0:03:31]} 1/2-1/2